bitfinex/quotes_BTCUSD_20240617
["timestamp","ask_amount","ask_price","bid_price","bid_amount"]
[1718618245065,0.1521,65747.0,65735.0,0.15208779]
[1718618245066,0.47346469,65744.0,65735.0,0.15208779]
[1718618245289,0.47346469,65743.0,65735.0,0.30421279]
[1718618245520,0.07604389,65739.0,65724.0,0.07755888]
[1718618245727,0.47346469,65738.0,65725.0,0.15208779]
[1718618245928,0.47346469,65737.0,65725.0,0.15208779]
[1718618246131,0.47346469,65738.0,65725.0,0.15208779]
[1718618246336,0.456439,65726.0,65725.0,0.15208779]
[1718618246546,0.152146,65726.0,65725.0,0.15208779]
[1718618246757,0.07604389,65732.0,65725.0,0.15208779]
[1718618246972,0.47346469,65733.0,65725.0,0.18129657]
[1718618247192,0.47346469,65734.0,65725.0,0.33344357]
[1718618247400,0.30423,65740.0,65725.0,0.33344357]
[1718618247401,0.152123,65736.0,65725.0,0.18729657]
[1718618247603,0.30423,65740.0,65725.0,0.20129657]
[1718618247777,0.62559348,65739.0,65726.0,0.02012966]
[1718618248123,0.304221,65742.0,65728.0,0.31354]
[1718618248124,0.47347548,65738.0,65728.0,0.31354]
[1718618248328,0.38023589,65748.0,65728.0,0.31354]
[1718618248329,0.152131,65733.0,65729.0,0.15208779]
[1718618248540,0.304246,65737.0,65729.0,0.15208779]
[1718618248749,0.47347603,65736.0,65729.0,0.15208779]
[1718618248959,0.304286,65728.0,65719.0,0.03035]
[1718618249173,0.15216,65721.0,65720.0,0.03035]
[1718618249381,0.15216,65721.0,65709.0,0.1414]
[1718618249382,0.152176,65713.0,65709.0,0.1414]
[1718618249606,0.07604389,65725.0,65710.0,0.16822779]
[1718618249835,0.152183,65710.0,65709.0,0.0795]
[1718618250034,0.152183,65710.0,65709.0,0.18243779]
[1718618250035,0.45655,65710.0,65709.0,0.18243779]
[1718618250258,0.45655,65710.0,65709.0,0.03035]
[1718618250462,0.47361476,65716.0,65700.0,0.0755]
[1718618250675,0.47361476,65715.0,65701.0,0.15208779]
[1718618250891,0.53259389,65710.0,65709.0,0.014]
[1718618251142,1.31057565,65710.0,65709.0,0.014]
[1718618252478,1.69684265,65710.0,65709.0,0.014]
[1718618252697,1.69684265,65710.0,65692.0,0.03035]
[1718618252698,0.761115,65693.0,65692.0,0.03035]
[1718618252909,0.1083,65697.0,65676.0,0.00086]
[1718618253121,0.07604389,65692.0,65677.0,0.62571715]
[1718618253334,0.152257,65678.0,65677.0,0.16945379]
[1718618253549,0.152248,65683.0,65677.0,0.16945379]
[1718618253755,0.152253,65681.0,65678.0,0.03631138]
[1718618253975,0.304433,65696.0,65679.0,0.15208779]
[1718618254200,0.62581176,65705.0,65690.0,0.172229]
[1718618254411,0.304377,65708.0,65692.0,0.152225]
[1718618254622,0.0619,65710.0,65693.0,0.17817603]
[1718618254846,0.152159,65721.0,65701.0,0.02]
[1718618255075,0.152159,65721.0,65696.0,0.15208779]
[1718618255076,0.152159,65721.0,65709.0,0.02]
[1718618255296,0.304317,65721.0,65710.0,0.16930679]
[1718618255504,0.07604389,65718.0,65710.0,0.15208779]
[1718618256153,0.07604389,65725.0,65710.0,0.32426979]
[1718618256363,0.30427,65731.0,65711.0,0.00608667]
[1718618256571,0.07604389,65732.0,65713.0,0.1694]
[1718618256790,0.07604389,65739.0,65713.0,0.1694]
[1718618256791,0.152119,65738.0,65724.0,0.152149]
[1718618257010,0.07604389,65737.0,65724.0,0.152149]
[1718618257205,0.07604389,65737.0,65719.0,0.17208779]
[1718618257206,0.29183989,65748.0,65733.0,0.152129]
[1718618257428,0.29183989,65748.0,65730.0,0.304272]
[1718618257429,0.04450232,65747.0,65735.0,0.0873]
[1718618257625,0.04450232,65747.0,65736.0,0.21514944]
[1718618257626,0.152102,65746.0,65736.0,0.21514944]
[1718618257914,0.04450232,65748.0,65737.0,0.1064]
[1718618258117,0.000946,65749.0,65745.0,0.02]
[1718618258345,0.000946,65749.0,65746.0,0.30722947]
[1718618258553,0.000946,65749.0,65746.0,0.15513047]
[1718618258779,0.000946,65749.0,65747.0,0.02293053]
[1718618258986,0.000946,65749.0,65748.0,0.15208779]
[1718618259193,0.000946,65749.0,65737.0,0.483642]
[1718618259194,0.07604389,65748.0,65740.0,0.05035]
[1718618259406,0.07604389,65748.0,65740.0,0.03035]
[1718618259407,0.22815589,65741.0,65740.0,0.03035]
[1718618259609,0.07604389,65741.0,65740.0,0.03035]
[1718618259820,0.07604389,65748.0,65746.0,0.014]
[1718618260229,0.07604389,65748.0,65747.0,0.15208779]
[1718618260230,0.152095,65748.0,65747.0,0.15208779]
[1718618260438,0.22814189,65747.0,65746.0,0.014]
[1718618260647,0.304203,65746.0,65740.0,0.054755]
[1718618260855,0.152112,65741.0,65740.0,0.054755]
[1718618261064,0.07604389,65747.0,65740.0,0.04435]
[1718618261273,0.456336,65741.0,65740.0,0.04435]
[1718618261488,0.07604389,65747.0,65740.0,0.04435]
[1718618261707,0.152101,65746.0,65740.0,0.04435]
[1718618261917,0.07604389,65747.0,65741.0,0.15208779]
[1718618262124,0.000946,65749.0,65742.0,0.02572778]
[1718618262367,0.000946,65749.0,65743.0,0.15208779]
[1718618262575,0.304192,65748.0,65743.0,0.15208779]
[1718618262798,0.152101,65746.0,65743.0,0.15208779]
[1718618263017,0.152105,65744.0,65743.0,0.15208779]
[1718618263233,0.000946,65749.0,65743.0,0.19126095]
[1718618263629,0.000946,65749.0,65744.0,0.02]
[1718618263837,0.000946,65749.0,65745.0,0.15208779]
[1718618265509,1.064749,65743.0,65742.0,0.014]
[1718618265724,0.22815089,65743.0,65742.0,0.014]
[1718618265935,0.68447189,65743.0,65724.0,0.02]
[1718618266212,0.68447189,65743.0,65720.0,0.47779576]
[1718618266213,0.304293,65726.0,65725.0,0.65813073]
[1718618266417,0.456439,65726.0,65725.0,0.20186737]
[1718618266623,0.760732,65726.0,65725.0,0.15208779]
[1718618267052,0.152142,65728.0,65725.0,0.15208779]
[1718618267359,0.152146,65726.0,65725.0,0.15208779]
[1718618267559,0.456431,65728.0,65725.0,0.16929657]
[1718618267790,0.152143,65728.0,65725.0,0.16929657]
[1718618267898,0.07604389,65734.0,65725.0,0.16929657]
[1718618267899,0.152146,65727.0,65725.0,0.16929657]
[1718618268105,0.304264,65733.0,65725.0,0.16929657]
[1718618268329,0.07604389,65734.0,65726.0,0.15208779]
[1718618268330,0.07604389,65727.0,65726.0,0.15208779]
[1718618268549,0.53247589,65727.0,65726.0,0.15208779]
[1718618268756,0.53247589,65727.0,65714.0,0.03718378]
[1718618268757,0.152146,65726.0,65725.0,0.014]
[1718618268966,0.152176,65713.0,65712.0,0.03035]
[1718618269175,0.07604389,65727.0,65709.0,0.17208779]
[1718618269176,0.45655,65710.0,65709.0,0.17208779]
[1718618269379,0.45655,65710.0,65709.0,0.15208779]
[1718618269588,0.38033689,65727.0,65709.0,0.15208779]
[1718618269589,0.304336,65717.0,65709.0,0.15208779]
[1718618269804,0.152178,65713.0,65709.0,0.15208779]
[1718618270042,0.45655,65710.0,65709.0,0.15208779]
[1718618270262,0.07604389,65718.0,65706.0,0.114]
[1718618270477,0.456564,65708.0,65707.0,0.15208779]
[1718618270696,0.76094,65708.0,65707.0,0.15208779]
[1718618270929,0.07604389,65718.0,65707.0,0.15208779]
[1718618271345,0.05,65732.0,65707.0,0.15208779]
[1718618271346,0.07604389,65717.0,65707.0,0.15208779]
[1718618271557,0.152188,65708.0,65707.0,0.15208779]
[1718618272208,0.304388,65706.0,65687.0,0.1949]
[1718618272420,0.761127,65692.0,65691.0,0.15208779]
[1718618272678,0.0851,65700.0,65679.0,0.0845]
[1718618272679,0.456711,65687.0,65679.0,0.0845]
[1718618272897,0.07604389,65689.0,65678.0,0.1104]
[1718618273094,0.23718779,65700.0,65679.0,0.15817784]
[1718618273095,0.152241,65686.0,65679.0,0.15817784]
[1718618273322,0.0851,65700.0,65681.0,0.02]
[1718618273528,0.0851,65700.0,65682.0,0.17208779]
[1718618273996,0.0851,65700.0,65685.0,0.02]
[1718618274204,0.152216,65696.0,65686.0,0.16966694]
[1718618274412,0.456711,65687.0,65686.0,0.16966694]
[1718618274634,0.09604389,65701.0,65686.0,0.15208779]
[1718618274842,0.304428,65697.0,65687.0,0.15208779]
[1718618275046,0.456703,65688.0,65687.0,0.15208779]
[1718618275255,0.07604389,65701.0,65687.0,0.15208779]
[1718618275666,0.304463,65690.0,65687.0,0.15208779]
[1718618275882,0.07604389,65701.0,65687.0,0.16929657]
[1718618275883,0.152215,65697.0,65687.0,0.16929657]
[1718618276092,0.1084,65704.0,65688.0,0.02608904]
[1718618276297,0.304411,65701.0,65689.0,0.15208779]
[1718618276502,0.304401,65703.0,65692.0,0.02]
[1718618276708,0.0854,65712.0,65693.0,0.15208779]
[1718618276920,0.07604389,65707.0,65694.0,0.04190575]
[1718618277123,0.07604389,65707.0,65695.0,0.15208779]
[1718618277334,0.152216,65696.0,65695.0,0.15208779]
[1718618278175,0.456648,65696.0,65695.0,0.15208779]
[1718618278382,0.76108,65696.0,65695.0,0.15208779]
[1718618278593,0.76108,65696.0,65686.0,0.086]
[1718618278594,0.152237,65687.0,65686.0,0.086]
[1718618278794,0.304453,65692.0,65686.0,0.24868779]
[1718618279002,0.02,65701.0,65687.0,0.15208779]
[1718618279210,0.456703,65688.0,65687.0,0.15208779]
[1718618279424,0.456703,65688.0,65687.0,0.16835657]
[1718618279946,0.152234,65688.0,65687.0,0.16835657]
[1718618280363,0.07604389,65699.0,65687.0,0.16835657]
[1718618280570,0.152234,65688.0,65687.0,0.16835657]
[1718618281573,0.152228,65691.0,65687.0,0.16835657]
[1718618281763,0.02,65704.0,65687.0,0.16835657]
[1718618281764,0.304396,65704.0,65688.0,0.01789566]
[1718618281980,0.456621,65700.0,65689.0,0.15208779]
[1718618282202,0.07604389,65707.0,65689.0,0.17208779]
[1718618282203,0.152203,65702.0,65689.0,0.17208779]
[1718618282430,0.152224,65693.0,65689.0,0.17208779]
[1718618282575,0.02,65709.0,65688.0,0.01789566]
[1718618282576,0.304359,65712.0,65693.0,0.02]
[1718618282799,0.07604389,65710.0,65694.0,0.22504197]
[1718618282987,0.07604389,65710.0,65694.0,0.15208779]
[1718618283213,0.07604389,65710.0,65658.0,0.00856]
[1718618283214,0.15226,65677.0,65658.0,0.00856]
[1718618283389,0.354402,65659.0,65658.0,0.00856]
[1718618283592,0.96361,65659.0,65658.0,0.00856]
[1718618283792,0.98361,65659.0,65658.0,0.00856]
[1718618284631,0.172298,65661.0,65658.0,0.00856]
[1718618284835,0.76151,65659.0,65658.0,0.00856]
[1718618285031,0.304601,65660.0,65658.0,0.00856]
[1718618285236,0.080944,65663.0,65658.0,0.00856]
[1718618285237,0.02,65659.0,65658.0,0.00856]
[1718618285466,0.476906,65659.0,65658.0,0.00856]
[1718618285673,0.78151,65659.0,65658.0,0.00856]
[1718618285915,0.476906,65659.0,65658.0,0.00856]
[1718618286126,0.152302,65659.0,65658.0,0.00856]
[1718618286335,0.080944,65663.0,65658.0,0.00856]
[1718618286462,0.01,65659.0,65658.0,0.00956]
[1718618286672,0.544404,65659.0,65658.0,0.00956]
[1718618286868,1.096114,65659.0,65658.0,0.00956]
[1718618287079,1.460718,65659.0,65658.0,0.00956]
[1718618287277,1.196114,65659.0,65658.0,0.00956]
[1718618287479,0.89151,65659.0,65658.0,0.00956]
[1718618287688,0.01,65659.0,65651.0,0.35695723]
[1718618288323,0.080944,65666.0,65655.0,0.152311]
[1718618288324,0.060944,65666.0,65655.0,0.152311]
[1718618288527,0.304516,65678.0,65652.0,0.00608061]
[1718618288528,0.0906,65686.0,65663.0,0.15208779]
[1718618288727,0.02,65680.0,65664.0,0.023]
[1718618288994,0.02,65680.0,65665.0,0.15208779]
[1718618289245,0.07604389,65690.0,65669.0,0.15208779]
[1718618289246,0.02,65690.0,65669.0,0.15208779]
[1718618289444,0.1152,65693.0,65669.0,0.15208779]
[1718618289445,0.02,65687.0,65669.0,0.15208779]
[1718618289660,0.060925,65690.0,65680.0,0.15208779]
[1718618289887,0.02,65708.0,65688.0,0.03048]
[1718618290199,0.304364,65711.0,65664.0,0.014]
[1718618290200,0.02,65675.0,65664.0,0.014]
[1718618290423,0.0861,65680.0,65664.0,0.014]
[1718618290631,0.01,65672.0,65664.0,0.014]
[1718618290843,0.02,65667.0,65664.0,0.014]
[1718618291069,0.07604389,65676.0,65664.0,0.014]
[1718618291070,0.476864,65665.0,65664.0,0.014]
[1718618291280,0.152288,65665.0,65664.0,0.014]
[1718618291488,0.476864,65665.0,65664.0,0.014]
[1718618291690,0.02,65659.0,65651.0,0.35695723]
[1718618291914,0.152294,65663.0,65652.0,0.1887933]
[1718618292130,0.304562,65668.0,65651.0,0.35695723]
[1718618292131,0.07604389,65653.0,65651.0,0.35695723]
[1718618292339,0.456954,65652.0,65651.0,0.35695723]
[1718618292548,0.172313,65655.0,65651.0,0.35695723]
[1718618292767,0.02,65660.0,65651.0,0.35695723]
[1718618293005,0.02,65659.0,65652.0,0.03670551]
[1718618293221,0.02,65659.0,65651.0,0.35695723]
[1718618293449,0.1169,65669.0,65652.0,0.013]
[1718618293450,0.021,65663.0,65652.0,0.013]
[1718618293665,0.021,65663.0,65652.0,0.15208779]
[1718618293666,0.001,65663.0,65652.0,0.15208779]
[1718618293871,0.021,65663.0,65653.0,0.0814496]
[1718618294081,0.021,65663.0,65654.0,0.15208779]
[1718618294082,0.173293,65663.0,65654.0,0.15208779]
[1718618294284,0.001,65663.0,65654.0,0.15208779]
[1718618294944,0.001,65663.0,65653.0,0.0814496]
[1718618294945,0.07604389,65660.0,65653.0,0.0814496]
[1718618295155,0.001,65655.0,65653.0,0.04392118]
[1718618295570,0.02,65663.0,65653.0,0.04392118]
[1718618295778,0.02,65667.0,65654.0,0.16608779]
[1718618295991,0.021,65663.0,65654.0,0.16608779]
[1718618296211,0.021,65663.0,65654.0,0.15208779]
[1718618296212,0.152303,65659.0,65654.0,0.15208779]
[1718618296434,0.152305,65658.0,65655.0,0.05537712]
[1718618296651,0.02,65663.0,65655.0,0.05537712]
[1718618296652,0.02,65663.0,65656.0,0.15208779]
[1718618296823,0.304584,65664.0,65656.0,0.15208779]
[1718618297111,0.304572,65666.0,65656.0,0.15208779]
[1718618297325,0.152295,65662.0,65656.0,0.15208779]
[1718618297552,0.02,65670.0,65656.0,0.15208779]
[1718618297774,0.02,65670.0,65658.0,0.304608]
[1718618297775,0.07604389,65664.0,65658.0,0.304608]
[1718618297995,0.456954,65652.0,65651.0,0.35695723]
[1718618298256,0.78159,65652.0,65651.0,0.35695723]
[1718618298468,0.02,65663.0,65651.0,0.39366274]
[1718618298690,0.152308,65657.0,65651.0,0.39366274]
[1718618298904,0.304601,65660.0,65651.0,0.39366274]
[1718618299120,0.304593,65662.0,65656.0,0.013]
[1718618299324,0.304601,65660.0,65652.0,0.15208779]
[1718618299532,0.324591,65662.0,65653.0,0.07497555]
[1718618299741,0.324591,65662.0,65654.0,0.15208779]
[1718618299950,0.152306,65657.0,65654.0,0.15208779]
[1718618300154,0.02,65659.0,65654.0,0.15208779]
[1718618300364,0.02,65654.0,65651.0,0.35695723]
[1718618300574,0.02,65652.0,65651.0,0.39366274]
[1718618300782,0.02,65654.0,65651.0,0.39366274]
[1718618300952,0.02,65654.0,65652.0,0.04037606]
[1718618301163,0.02,65655.0,65652.0,0.04037606]
[1718618301470,0.02,65663.0,65653.0,0.15208779]
[1718618301679,0.001,65662.0,65656.0,0.011]
[1718618301877,0.32459,65663.0,65653.0,0.15208779]
[1718618302092,0.02,65671.0,65657.0,0.02034639]
[1718618302297,0.02,65667.0,65657.0,0.02034639]
[1718618302701,0.02,65665.0,65657.0,0.02034639]
[1718618302856,0.001,65662.0,65657.0,0.02034639]
[1718618303061,0.021,65662.0,65658.0,0.01834342]
[1718618303277,0.001,65662.0,65659.0,0.15208779]
[1718618303471,0.001,65662.0,65660.0,0.0892]
[1718618303682,0.001,65662.0,65661.0,0.15208779]
[1718618304084,0.001,65662.0,65661.0,0.60897879]
[1718618304471,0.001,65662.0,65661.0,1.03105501]
[1718618304848,0.02,65677.0,65663.0,0.304584]
[1718618305066,0.152253,65680.0,65664.0,0.30437779]
[1718618305067,0.02,65676.0,65664.0,0.30437779]
[1718618305301,0.02,65674.0,65664.0,0.15208779]
[1718618305505,0.02,65676.0,65664.0,0.30437679]
[1718618305659,0.02,65676.0,65665.0,0.0815653]
[1718618305855,0.02,65674.0,65666.0,0.15208779]
[1718618306041,0.02,65676.0,65666.0,0.15208779]
[1718618306248,0.02,65676.0,65666.0,0.30437279]
[1718618306462,0.02,65682.0,65673.0,0.152268]
[1718618306664,0.02,65682.0,65674.0,0.0456815]
[1718618307268,0.02,65679.0,65674.0,0.0456815]
[1718618307471,0.02,65679.0,65661.0,0.21748222]
[1718618307694,0.02,65679.0,65671.0,0.304546]
[1718618307893,0.02,65682.0,65675.0,0.152263]
[1718618308116,0.304444,65694.0,65676.0,0.15208779]
[1718618308117,0.02,65688.0,65676.0,0.15208779]
[1718618308381,0.304414,65700.0,65678.0,0.304515]
[1718618308382,0.02,65690.0,65678.0,0.304515]
[1718618308593,0.02,65690.0,65682.0,0.152247]
[1718618308703,0.18634389,65697.0,65679.0,0.50256253]
[1718618308920,0.304414,65700.0,65679.0,0.50256253]
[1718618308921,0.02,65700.0,65692.0,0.152225]
[1718618309120,0.16534389,65704.0,65692.0,0.152225]
[1718618309121,0.02,65698.0,65692.0,0.152225]
[1718618309326,0.02,65696.0,65693.0,0.0456685]
[1718618309539,0.02,65698.0,65692.0,0.152225]
[1718618309742,0.02,65698.0,65683.0,0.304491]
[1718618309944,0.02,65696.0,65686.0,0.304477]
[1718618310160,0.16534389,65704.0,65684.0,0.17508779]
[1718618310161,0.02,65697.0,65687.0,0.15208779]
[1718618310375,0.02,65686.0,65679.0,0.04596474]
[1718618310601,0.304484,65685.0,65667.0,0.03048]
[1718618310875,0.134,65686.0,65662.0,0.1238]
[1718618310876,0.476766,65679.0,65662.0,0.1238]
[1718618311068,0.476766,65679.0,65657.0,0.47779576]
[1718618311069,1.085788,65679.0,65657.0,0.094]
[1718618311316,1.085788,65679.0,65654.0,0.1248]
[1718618311317,0.152301,65660.0,65654.0,0.1248]
[1718618311523,0.02,65668.0,65659.0,0.45626336]
[1718618311732,0.152297,65661.0,65660.0,0.06083512]
[1718618311972,0.02,65669.0,65660.0,0.15208779]
[1718618312178,0.08604389,65682.0,65654.0,0.1248]
[1718618312179,0.02,65666.0,65654.0,0.1248]
[1718618312423,0.304534,65674.0,65650.0,0.031285]
[1718618312424,0.15231,65656.0,65650.0,0.031285]
[1718618312659,0.152305,65658.0,65652.0,0.15208779]
[1718618312869,0.304579,65665.0,65653.0,0.063183]
[1718618312870,0.02,65665.0,65653.0,0.063183]
[1718618313077,0.02,65665.0,65654.0,0.15208779]
[1718618313313,0.02,65666.0,65656.0,0.03048]
[1718618313518,0.02,65666.0,65654.0,0.15208779]
[1718618313519,0.152289,65665.0,65657.0,0.15208779]
[1718618313749,0.304587,65663.0,65653.0,0.063183]
[1718618313947,0.02,65664.0,65659.0,0.152301]
[1718618314145,0.02,65663.0,65654.0,0.19418231]
[1718618314345,0.02,65662.0,65654.0,0.19418231]
[1718618314550,0.1523,65660.0,65655.0,0.03048]
[1718618314774,0.152304,65658.0,65656.0,0.15208779]
[1718618315115,0.02,65661.0,65657.0,0.02246623]
[1718618315323,0.304575,65666.0,65659.0,0.011]
[1718618315324,0.172299,65660.0,65659.0,0.011]
[1718618315526,0.152304,65658.0,65657.0,0.02246623]
[1718618315744,0.02,65665.0,65655.0,0.03048]
[1718618315946,0.02,65665.0,65655.0,0.19456779]
[1718618316150,0.152285,65666.0,65655.0,0.19456779]
[1718618316151,0.02,65662.0,65655.0,0.18256779]
[1718618316373,0.304583,65664.0,65655.0,0.18256779]
[1718618316591,0.02,65662.0,65657.0,0.012]
[1718618316801,0.02,65663.0,65658.0,0.02366623]
[1718618317221,0.02,65662.0,65658.0,0.02366623]
[1718618317435,0.02093501,65666.0,65658.0,0.02366623]
[1718618317648,0.152295,65662.0,65658.0,0.02366623]
[1718618317853,0.00093501,65666.0,65658.0,0.02366623]
[1718618318059,0.30458,65665.0,65659.0,0.02603285]
[1718618318268,0.02093501,65666.0,65659.0,0.17812064]
[1718618318269,0.00093501,65666.0,65659.0,0.17812064]
[1718618318478,0.00093501,65666.0,65661.0,0.152295]
[1718618318594,0.00093501,65666.0,65661.0,0.15208779]
[1718618318797,0.00093501,65666.0,65662.0,0.02723206]
[1718618318995,0.00093501,65666.0,65662.0,0.17931985]
[1718618319211,0.00093501,65666.0,65665.0,0.152288]
[1718618319424,0.304454,65692.0,65680.0,0.152253]
[1718618319425,0.02,65692.0,65680.0,0.152253]
[1718618319636,0.02,65690.0,65680.0,0.152253]
[1718618319882,0.02,65693.0,65681.0,0.32641689]
[1718618320090,0.30439,65706.0,65686.0,0.304475]
[1718618320091,0.02,65702.0,65686.0,0.304475]
[1718618320320,0.02,65702.0,65688.0,0.304469]
[1718618320560,0.02,65704.0,65693.0,0.304445]
[1718618320780,0.02,65704.0,65695.0,0.152217]
[1718618320996,0.246384,65710.0,65696.0,0.21296277]
[1718618320997,0.1142,65710.0,65696.0,0.21296277]
[1718618321214,0.0942,65710.0,65696.0,0.21296277]
[1718618321427,0.1212,65714.0,65704.0,0.152197]
[1718618321653,0.1212,65714.0,65696.0,0.21296277]
[1718618321654,0.02,65712.0,65696.0,0.21296277]
[1718618321880,0.02,65710.0,65696.0,0.15208779]
[1718618322090,0.1212,65714.0,65696.0,0.15208779]
[1718618322091,0.02,65707.0,65696.0,0.15208779]
[1718618322308,0.02,65710.0,65699.0,0.152209]
[1718618322542,0.02,65710.0,65700.0,0.15208779]
[1718618322760,0.02,65710.0,65700.0,0.18256779]
[1718618322979,0.02,65714.0,65701.0,0.08990356]
[1718618323185,0.02,65717.0,65705.0,0.152194]
[1718618323419,0.02,65714.0,65706.0,0.15208779]
[1718618323648,0.02,65711.0,65706.0,0.15208779]
[1718618323869,0.02,65711.0,65696.0,0.012]
[1718618323870,0.02,65706.0,65696.0,0.012]
[1718618324076,0.02,65706.0,65699.0,0.15208779]
[1718618324295,0.07604389,65703.0,65695.0,0.03048]
[1718618324509,0.02,65702.0,65695.0,0.18256779]
[1718618324716,0.07604389,65696.0,65687.0,0.03048]
[1718618324924,0.07604389,65696.0,65686.0,0.2136]
[1718618324925,0.152221,65694.0,65689.0,0.03048]
[1718618325128,0.02,65701.0,65691.0,0.03048]
[1718618325331,0.324417,65700.0,65693.0,0.03048]
[1718618325569,0.015,65714.0,65693.0,0.18256779]
[1718618325570,0.02,65704.0,65693.0,0.18256779]
[1718618325782,0.02,65706.0,65694.0,0.15208779]
[1718618326020,0.02,65704.0,65695.0,0.03048]
[1718618326231,0.30935,65714.0,65694.0,0.30430679]
[1718618326232,0.02,65711.0,65700.0,0.012]
[1718618326440,0.005,65714.0,65701.0,0.15208779]
[1718618326621,0.025,65714.0,65706.0,0.152191]
[1718618326751,0.005,65714.0,65706.0,0.30427879]
[1718618327363,0.005,65714.0,65704.0,0.304393]
[1718618327364,0.005,65714.0,65709.0,0.152185]
[1718618327575,0.005,65714.0,65710.0,0.06086518]
[1718618327576,0.025,65714.0,65710.0,0.06086518]
[1718618328698,0.005,65714.0,65711.0,0.15208779]
[1718618329141,0.005,65714.0,65713.0,0.456529]
[1718618329285,0.005,65714.0,65713.0,0.17508779]
[1718618329908,0.005,65714.0,65713.0,0.63161679]
[1718618330275,0.005,65714.0,65713.0,0.24433599]
[1718618330488,0.005,65714.0,65713.0,0.18208779]
[1718618330688,0.005,65714.0,65713.0,0.68861679]
[1718618331056,0.005,65714.0,65713.0,0.78861679]
[1718618331258,0.005,65714.0,65713.0,1.74396979]
[1718618331431,0.005,65714.0,65713.0,1.77444979]
[1718618331631,0.005,65714.0,65713.0,1.92653758]
[1718618331885,0.00939401,65725.0,65719.0,0.152161]
[1718618332041,0.00939401,65725.0,65720.0,0.17508779]
[1718618332492,0.00939401,65725.0,65721.0,0.00455583]
[1718618332695,0.00939401,65725.0,65724.0,0.456453]
[1718618332899,0.00939401,65725.0,65724.0,0.39828015]
[1718618333113,0.00939401,65725.0,65724.0,0.72558215]
[1718618333544,0.00939401,65725.0,65724.0,0.26912915]
[1718618333747,0.00939401,65725.0,65724.0,0.24612915]
[1718618333949,0.00939401,65725.0,65724.0,0.63154079]
[1718618334154,0.00939401,65725.0,65724.0,0.17508779]
[1718618334771,0.00939401,65725.0,65724.0,0.15208779]
[1718618335392,0.00939401,65725.0,65724.0,0.16408779]
[1718618335602,0.00939401,65725.0,65724.0,0.18049657]
[1718618336010,0.00939401,65725.0,65724.0,0.19249657]
[1718618337269,0.00939401,65732.0,65724.0,0.16849657]
[1718618337478,0.00939401,65732.0,65725.0,0.17508779]
[1718618337678,0.00939401,65732.0,65725.0,0.15208779]
[1718618337882,0.00939401,65732.0,65726.0,0.01684966]
[1718618338309,0.00939401,65732.0,65727.0,0.15208779]
[1718618339984,0.00939401,65732.0,65727.0,0.15708779]
[1718618341172,0.00939401,65732.0,65728.0,0.00608479]
[1718618341380,0.00939401,65732.0,65731.0,0.456405]
[1718618341600,0.00939401,65732.0,65731.0,0.62436551]
[1718618342012,0.00939401,65732.0,65731.0,0.92863551]
[1718618342487,0.00939401,65732.0,65731.0,2.05435751]
[1718618342689,0.00939401,65732.0,65731.0,1.57494751]
[1718618342896,0.00939401,65732.0,65731.0,1.27067751]
[1718618343069,0.00939401,65732.0,65731.0,0.92863551]
[1718618343277,0.00939401,65732.0,65731.0,0.94063551]
[1718618343703,0.00939401,65732.0,65731.0,1.45530551]
[1718618343911,0.00939401,65732.0,65731.0,2.77754051]
[1718618344109,0.00939401,65732.0,65731.0,2.87754051]
[1718618344539,0.00939401,65732.0,65731.0,3.18181051]
[1718618345623,0.00939401,65732.0,65731.0,3.16981051]
[1718618345831,0.00939401,65732.0,65731.0,3.47408051]
[1718618346044,0.00939401,65732.0,65731.0,3.48608051]
[1718618346661,0.00939401,65732.0,65731.0,3.18181051]
[1718618348014,0.00939401,65732.0,65731.0,3.48608051]
[1718618348220,0.00939401,65732.0,65731.0,3.18181051]
[1718618348438,0.00939401,65732.0,65731.0,3.21229051]
[1718618348925,0.000946,65749.0,65741.0,0.1]
[1718618349120,0.000946,65749.0,65748.0,0.76877379]
[1718618349329,0.000946,65749.0,65748.0,1.40436479]
[1718618349559,0.000946,65749.0,65748.0,1.73155579]
[1718618349772,0.000946,65749.0,65748.0,2.60611679]
[1718618350012,0.000946,65749.0,65748.0,2.28812458]
[1718618350190,0.000946,65749.0,65748.0,2.11233858]
[1718618350733,0.000946,65749.0,65748.0,2.11433858]
[1718618351747,0.000946,65749.0,65748.0,1.99769058]
[1718618354893,0.000946,65749.0,65748.0,1.78564358]
[1718618355129,0.000946,65749.0,65748.0,1.88564358]
[1718618355343,0.00755189,65756.0,65755.0,0.760397]
[1718618355545,0.00755189,65756.0,65755.0,1.00039941]
[1718618356144,0.00755189,65756.0,65755.0,1.30455841]
[1718618356763,0.00755189,65756.0,65755.0,0.39308141]
[1718618356967,0.00755189,65756.0,65755.0,0.001]
[1718618356968,0.39612889,65756.0,65755.0,0.001]
[1718618357176,0.70028289,65756.0,65755.0,0.001]
[1718618357393,0.70028289,65756.0,65732.0,0.15208779]
[1718618357394,0.01,65740.0,65732.0,0.15208779]
[1718618357644,0.02,65736.0,65732.0,0.15208779]
[1718618357856,0.02,65736.0,65731.0,0.00085]
[1718618358496,0.2267,65738.0,65737.0,0.304242]
[1718618358737,0.02,65745.0,65741.0,0.152111]
[1718618358738,0.1026,65744.0,65741.0,0.152111]
[1718618358965,0.1026,65744.0,65743.0,0.152107]
[1718618359188,0.1026,65744.0,65743.0,0.60840879]
[1718618359404,0.1026,65752.0,65751.0,0.152088]
[1718618359629,0.124,65755.0,65751.0,0.15208779]
[1718618359837,0.152091,65750.0,65737.0,0.15912]
[1718618360052,0.152091,65750.0,65731.0,0.761098]
[1718618360053,0.02,65744.0,65738.0,0.22891937]
[1718618360264,0.02,65744.0,65738.0,0.15208779]
[1718618360468,0.02,65744.0,65743.0,0.007]
[1718618360695,0.02,65748.0,65738.0,0.15208779]
[1718618360913,0.07604389,65754.0,65739.0,0.0009209]
[1718618361144,0.02,65751.0,65740.0,0.15208779]